bitfinex-derivatives/quotes_ETHF0:USTF0_20251211
["timestamp","ask_amount","ask_price","bid_price","bid_amount"]
[1765446612732,6.6397716,3201.0,3200.9,1.33677]
[1765446614346,8.2856432,3201.0,3200.9,0.15617]
[1765446618433,2.2731,3200.7,3200.6,0.0046856]
[1765446618738,3.4182716,3200.7,3200.6,0.0046856]
[1765446619335,3.4182716,3200.7,3200.6,0.00734052]
[1765446621229,3.4182716,3200.7,3200.6,0.16353052]
[1765446624442,2.2731,3200.1,3200.0,1.8382]
[1765446624639,3.4182716,3200.1,3200.0,1.99442]
[1765446624839,3.4182716,3200.1,3200.0,3.15382]
[1765446625434,3.4182716,3200.1,3200.0,3.15651144]
[1765446630944,2.2731,3200.1,3200.0,3.15651144]
[1765446631143,3.4182716,3200.1,3200.0,3.15651144]
[1765446631945,2.3045716,3200.1,3200.0,3.15651144]
[1765446633142,3.3912716,3200.1,3200.0,3.15651144]
[1765446633339,1.1594,3200.1,3200.0,3.15651144]
[1765446633540,2.3045716,3200.1,3200.0,3.15651144]
[1765446635748,3.2078,3200.5,3200.4,2.3468]
[1765446635949,3.3725716,3200.9,3200.8,2.34678]
[1765446636150,3.3772572,3201.3,3201.2,2.34676]
[1765446636650,1.1453856,3201.3,3201.2,2.34676]
[1765446636854,0.0046856,3201.3,3201.2,2.34676]
[1765446644848,3.3772572,3201.3,3201.2,0.15616]
[1765446645158,3.3772572,3201.3,3201.2,2.34676]
[1765446647660,1.1453856,3201.3,3201.2,2.34676]
[1765446648859,0.0046856,3201.3,3201.2,2.34676]
[1765446649257,4.21315235,3201.7,3201.6,2.34674]
[1765446649561,3.07245235,3201.7,3201.6,2.34674]
[1765446650463,1.1453856,3202.0,3201.9,2.34672]
[1765446656358,0.0046856,3202.0,3201.9,2.34672]
[1765446656561,0.0046856,3202.0,3201.9,3.4918916]
[1765446656756,3.2078,3202.5,3202.1,2.34671]
[1765446657563,3.09323239,3202.5,3202.4,2.3467]
[1765446657968,0.0046856,3202.8,3202.7,2.34669]
[1765446658365,2.0371,3202.2,3202.1,3.90803012]
[1765446658668,2.0371,3202.1,3202.0,0.15611]
[1765446658866,2.0371,3202.1,3202.0,0.15901982]
[1765446660571,5.2449,3202.1,3202.0,0.15901982]
[1765446661668,2.0371,3201.4,3201.3,0.0046856]
[1765446661882,5.2449,3201.4,3201.3,0.0046856]
[1765446662775,5.2449,3201.4,3201.3,0.00794434]
[1765446662961,2.0371,3201.6,3201.5,1.5826]
[1765446663162,2.0371,3201.5,3201.4,0.15615]
[1765446663975,5.5691,3201.5,3201.4,0.15615]
[1765446671578,5.7291,3201.9,3201.8,2.09583]
[1765446671781,2.0371,3201.9,3201.8,2.09583]
[1765446672278,2.0371,3201.9,3201.8,1.14243]
[1765446672481,2.0371,3201.9,3201.8,0.15613]
[1765446676380,2.0371,3201.4,3201.3,0.00794434]
[1765446676684,2.0371,3201.2,3201.1,0.15616]
[1765446677586,2.0371,3201.2,3201.1,0.15978742]
[1765446680787,2.0371,3201.2,3201.1,0.00362742]
[1765446684791,3.15366723,3201.2,3201.1,0.00362742]
[1765446687183,2.0371,3201.2,3201.1,1.93742742]
[1765446687486,3.15366723,3201.2,3201.1,1.93742742]
[1765446688088,3.15366723,3201.2,3201.1,0.98992742]
[1765446688292,3.15366723,3201.2,3201.1,0.00362742]
[1765446700493,9.91056723,3201.4,3201.3,0.9045]
[1765446700696,1.8942,3201.2,3201.1,1.82602742]
[1765446702195,5.102,3201.2,3201.1,1.82602742]
[1765446705597,5.102,3201.2,3201.1,0.90812742]
[1765446705793,5.102,3201.2,3201.1,0.00362742]
[1765446707492,6.21856723,3201.2,3201.1,0.00362742]
[1765446708001,6.21856723,3201.2,3201.1,1.82602742]
[1765446708195,6.21856723,3201.2,3201.1,0.90812742]
[1765446709402,6.21856723,3201.2,3201.1,1.82602742]
[1765446709804,6.21856723,3201.2,3201.1,0.90812742]
[1765446710102,5.24816723,3201.2,3201.1,1.82602742]
[1765446710303,6.21246723,3201.2,3201.1,1.82602742]
[1765446710806,6.21246723,3201.2,3201.1,0.90812742]
[1765446711504,6.21246723,3201.2,3201.1,0.00362742]
[1765446711906,5.0959,3201.2,3201.1,0.90812742]
[1765446712198,6.21246723,3201.2,3201.1,0.90812742]
[1765446712498,4.1316,3201.2,3201.1,1.98218742]
[1765446712693,3.2078,3201.2,3201.1,1.98218742]
[1765446713598,4.1316,3201.2,3201.1,1.98218742]
[1765446715203,5.0684,3201.2,3201.1,0.15978742]
[1765446726617,5.0684,3201.2,3201.1,1.85918742]
[1765446726814,6.18496723,3201.2,3201.1,1.85918742]
[1765446727018,6.06066723,3201.2,3201.1,1.85918742]
[1765446727224,6.06066723,3201.2,3201.1,1.03428742]
[1765446727522,6.06066723,3201.2,3201.1,1.85918742]
[1765446728818,6.08897327,3201.2,3201.1,1.85918742]
[1765446731424,6.08897327,3201.2,3201.1,1.03428742]
[1765446731627,6.08897327,3201.2,3201.1,1.85918742]
[1765446733325,6.08897327,3201.2,3201.1,0.15978742]
[1765446736436,4.35267327,3201.2,3201.1,1.81738742]
[1765446736733,4.6784,3201.2,3201.1,1.81738742]
[1765446737030,5.82327327,3201.2,3201.1,1.81738742]
[1765446739333,5.08797327,3201.2,3201.1,1.81738742]
[1765446739735,5.79807327,3201.2,3201.1,0.97858742]
[1765446740238,5.79807327,3201.2,3201.1,1.81738742]
[1765446740530,5.79807327,3201.2,3201.1,0.15978742]
[1765446744935,6.94294654,3201.2,3201.1,0.15978742]
[1765446745732,5.79807327,3201.2,3201.1,0.15978742]
[1765446749939,5.79807327,3201.2,3201.1,0.91888742]
[1765446750732,5.79807327,3201.2,3201.1,0.15978742]
[1765446751544,5.79807327,3201.2,3201.1,0.91888742]
[1765446752244,5.79807327,3201.2,3201.1,0.15978742]
[1765446752640,5.79807327,3201.2,3201.1,1.72608742]
[1765446752839,5.79807327,3201.2,3201.1,0.15978742]
[1765446753039,1.1906,3200.9,3200.8,0.7637856]
[1765446753339,2.33547327,3200.9,3200.8,0.7637856]
[1765446753545,2.33547327,3200.9,3200.8,1.5709856]
[1765446754048,2.33547327,3200.9,3200.8,1.57357503]
[1765446754740,2.35307327,3200.9,3200.8,1.57357503]
[1765446755445,1.74017327,3200.9,3200.8,1.72975503]
[1765446755645,1.14487327,3200.9,3200.8,1.72975503]
[1765446756039,1.74977327,3200.9,3200.8,1.72975503]
[1765446756548,1.14487327,3200.9,3200.8,1.72975503]
[1765446757046,3.8093856,3201.2,3201.1,1.5663]
[1765446757248,4.95425887,3201.2,3201.1,1.5663]
[1765446757747,4.95425887,3201.2,3201.1,1.72246]
[1765446758854,4.35735887,3201.2,3201.1,1.72246]
[1765446759053,4.93835887,3201.2,3201.1,1.72246]
[1765446759854,5.51145887,3201.2,3201.1,1.72246]
[1765446762057,4.93835887,3201.2,3201.1,1.72246]
[1765446762252,5.48785887,3201.2,3201.1,1.72246]
[1765446762852,5.48785887,3201.2,3201.1,0.91526]
[1765446763057,5.48785887,3201.2,3201.1,0.15616]
[1765446763260,5.48785887,3201.2,3201.1,0.91526]
[1765446763463,5.48785887,3201.2,3201.1,1.72246]
[1765446765961,3.7934856,3201.2,3201.1,1.72246]
[1765446766166,0.0046856,3201.2,3201.1,1.72246]
[1765446766862,0.0460043,3201.2,3201.1,1.72246]
[1765446767061,1.6412253,3201.2,3201.1,1.72246]
[1765446769365,2.78609857,3201.2,3201.1,0.15616]
[1765446770265,1.6412253,3201.2,3201.1,0.15616]
[1765446770661,2.78609857,3201.2,3201.1,0.15616]
[1765446772370,2.78609857,3201.2,3201.1,1.72246]
[1765446775670,1.75679857,3201.2,3201.1,1.72246]
[1765446776271,2.21789857,3201.2,3201.1,1.72246]
[1765446778173,1.0730253,3201.2,3201.1,1.72246]
[1765446779573,1.5341253,3201.2,3201.1,1.72246]
[1765446779874,1.0730253,3201.2,3201.1,1.72246]
[1765446781278,1.5347253,3201.2,3201.1,1.72246]
[1765446781775,1.0730253,3201.2,3201.1,1.72246]
[1765446785079,1.5347253,3201.2,3201.1,1.72246]
[1765446785282,1.5347253,3201.2,3201.1,0.15616]
[1765446785578,1.5347253,3201.2,3201.1,0.87696]
[1765446785775,4.7425253,3201.2,3201.1,0.87696]
[1765446787179,5.88739857,3201.2,3201.1,0.15616]
[1765446787381,4.7425253,3201.2,3201.1,0.15616]
[1765446788882,4.93603592,3201.2,3201.1,1.56676]
[1765446789086,5.39773592,3201.2,3201.1,1.56676]
[1765446789281,5.85943592,3201.2,3201.1,1.56676]
[1765446791283,4.93603592,3201.2,3201.1,1.56676]
[1765446791588,5.39773592,3201.2,3201.1,1.56676]
[1765446791785,5.85943592,3201.2,3201.1,1.56676]
[1765446794490,2.65163592,3201.2,3201.1,1.56676]
[1765446794994,2.18993592,3201.2,3201.1,1.56676]
[1765446795291,0.6119253,3201.2,3201.1,1.56676]
[1765446795789,1.0736253,3201.2,3201.1,1.56676]
[1765446796189,0.6119253,3201.2,3201.1,4.77456]
[1765446796908,1.0735253,3201.2,3201.1,4.77456]
[1765446800598,0.6119253,3201.2,3201.1,4.77456]
[1765446804895,0.6119253,3201.2,3201.1,1.56676]
[1765446810801,0.6119253,3201.2,3201.1,4.77456]
[1765446812505,0.6119253,3201.2,3201.1,1.56676]
[1765446812707,0.6119253,3201.2,3201.1,4.77456]
[1765446817510,0.6119253,3201.2,3201.1,1.56676]
[1765446817712,3.2078,3201.8,3201.7,1.58553]
[1765446819008,5.27449622,3202.1,3202.0,2.03672]
[1765446819214,2.04399622,3202.1,3202.0,2.03672]
[1765446821811,1.58249622,3202.1,3202.0,2.03672]
[1765446824616,2.04399622,3202.1,3202.0,2.03672]
[1765446825112,1.58249622,3202.1,3202.0,2.03672]
[1765446828714,0.4661856,3202.1,3202.0,2.03672]
[1765446829910,0.0046856,3202.1,3202.0,2.03672]
[1765446831015,0.4661856,3202.1,3202.0,2.03672]
[1765446831818,0.0046856,3202.1,3202.0,2.03672]
[1765446837123,7.8228,3202.8,3202.7,0.7292]
[1765446837323,4.1308,3202.8,3202.7,0.7292]
[1765446837925,0.923,3202.6,3202.5,2.03669]
[1765446838137,1.5804146,3202.6,3202.5,2.03669]
[1765446840832,0.00260398,3202.6,3202.5,2.03669]
[1765446841525,0.00260398,3202.6,3202.5,5.24449]
[1765446842429,0.92640398,3202.6,3202.5,4.06387137]
[1765446842732,1.425,3202.1,3202.0,1.859]
[1765446843027,5.74911062,3202.1,3202.0,1.859]
[1765446843332,5.02161062,3202.1,3202.0,1.859]
[1765446843532,5.02161062,3202.1,3202.0,2.01512]
[1765446843727,5.74911062,3202.1,3202.0,2.01512]
[1765446844230,4.6328,3202.1,3202.0,2.01512]
[1765446844435,5.74911062,3202.1,3202.0,2.01512]
[1765446845232,0.6975,3201.1,3201.0,1.99707]
[1765446845435,2.54131062,3201.1,3201.0,1.28247]
[1765446845633,2.54131062,3201.1,3201.0,0.58927]
[1765446846024,2.54131062,3201.1,3201.0,0.15617]
[1765446847131,1.425,3200.9,3200.7,0.0046856]
[1765446847333,4.6328,3200.9,3200.7,0.0046856]
[1765446848840,5.77810199,3200.9,3200.7,0.0046856]
[1765446849036,4.6328,3200.9,3200.7,0.0046856]
[1765446853437,1.425,3200.9,3200.7,0.0046856]
[1765446853640,4.6328,3200.9,3200.7,0.0046856]
[1765446854936,1.425,3200.9,3200.7,0.0046856]
[1765446855141,4.6328,3200.9,3200.7,0.0046856]
[1765446857744,4.6328,3200.9,3200.7,0.1608656]
[1765446864243,1.425,3200.9,3200.7,0.1608656]
[1765446864446,4.6328,3200.9,3200.7,0.1608656]
[1765446866639,4.6328,3200.9,3200.8,0.15876943]
[1765446869451,1.5142,3199.6,3199.5,1.195]
[1765446869641,0.7607,3199.6,3199.5,1.921]
[1765446869846,3.9685,3199.6,3199.5,1.921]
[1765446870439,4.72494178,3199.6,3199.5,1.92370513]
[1765446870644,3.97144178,3199.6,3199.5,2.07994513]
[1765446870846,3.21074178,3199.6,3199.5,2.07994513]
[1765446871945,3.97144178,3199.6,3199.5,2.07994513]
[1765446872341,3.21074178,3199.6,3199.5,2.07994513]
[1765446872541,0.00294178,3199.6,3199.5,2.07994513]
[1765446874250,4.72494178,3199.6,3199.5,0.00270513]
[1765446874548,4.72494178,3199.6,3199.5,0.44950513]
[1765446874744,3.21074178,3199.6,3199.5,1.93750513]
[1765446875048,0.00294178,3199.6,3199.5,2.09374513]
[1765446875449,1.51714178,3199.6,3199.5,2.09374513]
[1765446876751,0.76364178,3199.6,3199.5,2.09374513]
[1765446877646,1.51714178,3199.6,3199.5,2.09374513]
[1765446878448,0.76364178,3199.6,3199.5,2.09374513]
[1765446879260,1.4822,3198.8,3198.7,5.56383806]
[1765446879446,0.7411,3198.9,3198.8,1.64427]
[1765446879950,3.2078,3199.0,3198.9,1.64427]
[1765446880254,4.7024,3199.0,3198.9,0.15977384]
[1765446880750,4.7024,3199.0,3198.9,0.92177384]
[1765446881546,4.7024,3199.0,3198.9,0.15977384]
[1765446882246,4.7024,3199.0,3198.9,0.92177384]
[1765446882749,4.7024,3199.0,3198.9,1.64777384]
[1765446883150,4.7024,3199.0,3197.0,0.4468]
[1765446883151,1.153,3198.0,3197.5,3.6546]
[1765446883348,4.3608,3197.6,3197.5,1.93091473]
[1765446883544,3.2078,3197.6,3197.5,1.93091473]
[1765446883750,4.3686,3198.0,3197.9,1.488]
[1765446883950,3.7882,3198.0,3197.9,1.64432]
[1765446884151,3.7882,3198.0,3197.9,1.6468195]
[1765446884456,4.387,3198.0,3197.9,1.6468195]
[1765446884756,4.387,3198.0,3197.9,0.9208195]
[1765446885657,3.2078,3198.0,3197.9,1.6468195]
[1765446885857,3.7989,3198.0,3197.9,1.6468195]
[1765446886059,4.39,3198.0,3197.9,1.6468195]
[1765446887757,4.39,3198.0,3197.9,0.1588195]
[1765446889556,4.39,3198.0,3197.9,0.9208195]
[1765446890057,3.7989,3198.0,3197.9,1.6468195]
[1765446890262,3.2078,3198.0,3197.9,1.6468195]
[1765446890761,3.7607,3198.0,3197.9,1.6468195]
[1765446890954,3.2078,3198.0,3197.9,1.6468195]
[1765446893961,4.2885,3198.0,3197.9,0.1588195]
[1765446894257,4.2885,3198.0,3197.9,0.0024995]
[1765446894753,1.0658,3197.4,3197.3,0.15635]
[1765446894949,4.2736,3197.4,3197.3,0.15635]
[1765446895758,4.2736,3197.4,3197.3,0.15901523]
[1765446896157,4.2736,3197.4,3197.3,0.00266523]
[1765446896367,1.0658,3196.6,3196.5,0.15639]
[1765446896558,3.2078,3196.6,3195.7,0.15643]
[1765446896763,0.5302,3196.1,3196.0,1.9348]
[1765446897055,1.0604,3196.1,3196.0,1.9348]
[1765446897568,0.5332834,3196.1,3196.0,1.93875071]
[1765446897958,3.7410834,3196.1,3196.0,1.93875071]
[1765446898265,3.2108834,3196.1,3196.0,1.93875071]
[1765446898463,3.7420834,3196.1,3196.0,1.93875071]
[1765446898664,3.7420834,3196.1,3196.0,2.09516071]
[1765446899475,1.0654834,3196.1,3196.0,0.16036071]
[1765446899666,4.2732834,3196.1,3196.0,0.16036071]
[1765446900865,3.7420834,3196.1,3196.0,1.97496071]
[1765446901061,4.2732834,3196.1,3196.0,1.97496071]
[1765446902064,4.2732834,3196.1,3196.0,1.26686071]
[1765446902265,4.2732834,3196.1,3196.0,0.57416071]
[1765446902466,4.2732834,3196.1,3196.0,1.26686071]
[1765446902862,4.2732834,3196.1,3196.0,1.97496071]
[1765446903061,3.2108834,3196.1,3196.0,1.97496071]
[1765446903661,3.2108834,3196.1,3196.0,7.97496071]
[1765446903965,0.0046856,3196.9,3196.7,0.84908]
[1765446903966,4.2702,3196.8,3196.7,0.84908]
[1765446904167,4.2702,3196.8,3196.7,1.55718]
[1765446904565,0.5358856,3196.9,3196.8,1.4008]
[1765446904765,1.07006356,3196.9,3196.8,1.4008]
[1765446906170,0.00766356,3196.9,3196.8,1.55717]
[1765446908075,3.2078,3197.7,3197.6,1.4008]
[1765446908271,4.6373,3197.7,3197.6,1.4008]
[1765446908567,1.4295,3197.6,3197.5,1.1065]
[1765446909270,1.4319304,3197.6,3197.5,1.1065]
[1765446909570,1.4319304,3197.6,3197.5,0.4138]
[1765446911770,1.4319304,3197.6,3197.5,1.26284]
[1765446912171,1.4319304,3197.6,3197.5,0.57014]
[1765446912866,1.4319304,3197.6,3197.5,2.18174]
[1765446915172,1.4319304,3197.6,3197.5,1.39304]
[1765446919065,1.4319304,3197.6,3197.5,2.18174]
[1765446920068,0.0024304,3197.6,3197.5,2.18174]
[1765446925372,0.8055304,3197.6,3197.5,2.18174]
[1765446925577,1.5834304,3197.6,3197.5,2.18174]
[1765446925977,0.8055304,3197.6,3197.5,2.18174]
[1765446927680,1.5226,3197.3,3197.2,0.00469329]
[1765446928179,1.506,3196.9,3196.8,0.15637]
[1765446928384,4.7138,3196.9,3196.0,3.78196071]
[1765446928583,0.7483,3196.1,3196.0,5.38956071]
[1765446929082,1.4972,3196.1,3196.0,5.38956071]
[1765446929282,0.7483,3196.1,3196.0,5.38956071]
[1765446929871,0.7414,3196.2,3196.1,0.1564]
[1765446930074,1.4745,3196.2,3196.1,0.1564]
[1765446930276,1.4745,3196.2,3196.1,1.7527]
[1765446930475,1.4745,3196.2,3196.1,0.968]
[1765446930972,4.6658,3196.5,3196.4,1.5963]
[1765446931373,1.4498,3196.4,3196.3,0.96799]
[1765446931582,1.4498,3196.4,3196.3,0.15639]
[1765446934784,4.6576,3196.4,3196.3,0.15639]
[1765446936288,4.6576,3196.4,3196.0,0.46525071]
[1765446936289,1.3686,3196.1,3196.0,2.06155071]
[1765446938488,1.3686,3196.1,3196.0,0.46525071]
[1765446938887,1.3686,3196.1,3196.0,1.27685071]
[1765446939186,1.3686,3196.1,3196.0,0.46525071]
[1765446939782,1.3686,3196.1,3196.0,1.27685071]
[1765446940383,1.3686,3196.1,3196.0,0.46525071]
[1765446940586,1.3686,3196.1,3196.0,0.00395071]
[1765446945690,1.2258,3195.7,3195.6,0.15643]
[1765446945990,4.4336,3195.7,3195.6,0.15643]
[1765446946590,4.4336,3195.7,3195.6,0.15923085]
[1765446949209,4.4336,3195.7,3195.6,0.00280085]
[1765446955700,6.9266,3195.7,3195.6,0.00280085]
[1765446956090,4.4336,3195.7,3195.6,0.00280085]
[1765446956293,13.4596,3195.7,3195.6,0.00280085]
[1765446956792,16.5626,3195.7,3195.6,0.00280085]
[1765446957394,16.8226,3195.7,3195.6,0.00280085]
[1765446958294,16.8216,3195.7,3195.6,0.00280085]
[1765446959711,4.4336,3195.7,3195.6,0.00280085]
[1765446961310,3.8207,3195.7,3195.6,1.42360085]
[1765446961508,3.7299,3195.7,3195.6,1.42360085]
[1765446961709,4.252,3195.7,3195.6,1.42360085]
[1765446962207,4.252,3195.7,3195.6,0.00280085]
[1765446963319,4.252,3195.7,3195.0,1.2185]
[1765446963320,1.0386,3195.1,3195.0,1.2185]
[1765446963911,0.80055699,3195.1,3195.0,1.2185]
[1765446964111,0.80055699,3195.1,3195.0,1.9349]
[1765446964410,3.3326,3195.3,3195.2,1.4208]
[1765446964616,3.33604415,3195.3,3195.2,1.4208]
[1765446964913,3.21124415,3195.3,3195.2,1.4208]
[1765446966016,3.33604415,3195.3,3195.2,1.4208]
[1765446966711,3.21124415,3195.3,3195.2,1.4208]
[1765446967610,3.33604415,3195.3,3195.2,1.4208]
[1765446968114,0.1248,3195.2,3195.1,0.15646]
[1765446968319,0.1248,3195.2,3195.1,1.57726]
[1765446971108,0.2496,3195.2,3195.1,1.57726]
[1765446972415,0.1248,3195.2,3195.1,1.57726]
[1765446972820,0.2485,3195.2,3195.1,1.57726]
[1765446973042,0.1248,3195.2,3195.1,1.57726]
[1765446973215,0.2485,3195.2,3195.1,1.57726]
[1765446973920,0.2485,3195.2,3195.1,0.86086]
[1765446975514,0.2485,3195.2,3195.1,1.60296]
[1765446980313,0.1248,3195.2,3195.1,1.60296]
[1765446982823,3.21124415,3195.3,3195.2,1.4444]
[1765446983127,3.33494415,3195.3,3195.2,1.4444]
[1765446984027,0.2474,3195.1,3195.0,1.96221162]
[1765446984827,0.1237,3195.1,3195.0,1.96221162]
[1765446985029,0.2474,3195.1,3195.0,1.96221162]
[1765446985224,0.2474,3195.1,3195.0,1.22011162]
[1765446985429,0.2474,3195.1,3195.0,0.51781162]
[1765446985727,0.2474,3195.1,3195.0,1.22011162]
[1765446985928,0.2474,3195.1,3195.0,1.96221162]
[1765446986827,0.2474,3195.1,3195.0,1.22011162]
[1765446988430,0.2474,3195.1,3195.0,1.96221162]
[1765446991933,0.2474,3195.1,3195.0,1.22011162]
[1765446992133,0.2474,3195.1,3195.0,1.97111162]
[1765446992426,0.1237,3195.1,3195.0,1.97111162]
[1765446992631,0.2488,3195.1,3195.0,1.97111162]
[1765446993829,0.1237,3195.1,3195.0,1.97111162]
[1765446997837,3.21124415,3195.3,3195.2,1.5007]
[1765446998038,3.46144415,3195.3,3195.2,1.5007]
[1765446998735,3.46144415,3195.3,3195.2,0.7497]
[1765447001039,3.46144415,3195.3,3195.2,1.5007]
[1765447002239,3.33634415,3195.3,3195.2,1.5007]
[1765447002545,3.21124415,3195.3,3195.2,1.5007]
[1765447002934,3.33634415,3195.3,3195.2,1.5007]
[1765447003639,3.21124415,3195.3,3195.2,1.65715]
[1765447004439,0.00344415,3195.3,3195.2,1.65715]
[1765447022556,0.12824415,3195.3,3195.2,1.65715]
[1765447023450,0.00344415,3195.3,3195.2,1.65715]
[1765447026361,3.21124415,3195.3,3195.2,1.65715]
[1765447028456,3.46084415,3195.3,3195.2,1.65715]
[1765447029057,3.21124415,3195.3,3195.2,1.65715]
[1765447036074,3.33534415,3195.3,3195.2,1.65715]
[1765447037074,0.12754415,3195.3,3195.2,1.65715]
[1765447041374,0.25164415,3195.3,3195.2,1.65715]
[1765447041973,0.12754415,3195.3,3195.2,1.65715]
[1765447042976,0.25164415,3195.3,3195.2,1.65715]
[1765447043480,0.12754415,3195.3,3195.2,1.65715]
[1765447047986,0.00344415,3195.3,3195.2,1.65715]
[1765447048591,0.12754415,3195.3,3195.2,1.65715]
[1765447049085,0.25264415,3195.3,3195.2,0.15645]
[1765447049289,0.25264415,3195.3,3195.2,0.90675]
[1765447049587,0.25264415,3195.3,3195.2,1.65685]
[1765447050089,0.12754415,3195.3,3195.2,1.65685]
[1765447051386,0.25264415,3195.3,3195.2,1.65685]
[1765447051589,0.12754415,3195.3,3195.2,1.65685]
[1765447051983,0.25264415,3195.3,3195.2,1.65685]
[1765447053190,0.12754415,3195.3,3195.2,1.65685]
[1765447056290,3.33534415,3195.3,3195.2,1.65685]
[1765447061087,0.12754415,3195.3,3195.2,1.65685]
[1765447061293,3.33534415,3195.3,3195.2,1.65685]
[1765447061493,3.21124415,3195.3,3195.2,1.65685]
[1765447062989,3.46144415,3195.3,3195.2,1.65685]
[1765447063195,3.21124415,3195.3,3195.2,1.65685]
[1765447065292,4.415e-05,3195.3,3195.2,1.65685]
[1765447065496,3.4648,3195.7,3195.6,1.5004]
[1765447065698,3.3363,3195.7,3195.6,1.5004]
[1765447066087,3.4648,3195.7,3195.6,1.5004]
[1765447066292,3.4648,3195.7,3195.6,0.7503]
[1765447066492,0.257,3195.6,3195.5,0.4372]
[1765447068200,0.257,3195.1,3195.0,0.51781162]
[1765447068403,9.8918,3195.1,3195.0,1.26811162]
[1765447068702,9.8918,3195.1,3195.0,0.51781162]
[1765447070402,3.4648,3195.1,3195.0,0.51781162]
[1765447071404,3.2078,3195.1,3195.0,2.01821162]
[1765447072103,3.3363,3195.1,3195.0,2.01821162]
[1765447072508,3.2078,3195.1,3195.0,2.01821162]
[1765447073299,3.4648,3195.1,3195.0,2.01821162]
[1765447073600,3.3363,3195.1,3195.0,2.01821162]
[1765447074198,3.2078,3195.1,3195.0,2.01821162]
[1765447075409,3.4648,3195.1,3195.0,0.51781162]
[1765447075596,3.4648,3195.1,3195.0,1.26811162]
[1765447075803,3.4648,3195.1,3195.0,2.01821162]
[1765447076509,3.3363,3195.1,3195.0,2.01821162]
[1765447077409,3.4648,3195.1,3195.0,2.01821162]
[1765447077606,9.4648,3195.1,3195.0,0.00371162]
[1765447077798,9.4648,3195.1,3195.0,1.162e-05]
[1765447081808,3.4648,3195.1,3195.0,1.162e-05]
[1765447082007,12.7638,3195.1,3195.0,1.162e-05]
[1765447082409,15.8258,3195.1,3195.0,1.162e-05]
[1765447086816,21.8258,3195.1,3195.0,1.162e-05]
[1765447087315,26.03659742,3195.1,3195.0,1.162e-05]
[1765447087616,26.28952713,3195.1,3195.0,1.162e-05]
[1765447088316,0.2498,3193.6,3193.5,1.1259]
[1765447088514,0.2498,3193.1,3193.0,0.4372]
[1765447088817,3.4576,3193.1,3193.0,1.8832]
[1765447089417,3.45995074,3193.1,3193.0,1.88544125]
[1765447089717,3.33505074,3193.1,3193.0,1.88544125]
[1765447089916,3.21015074,3193.1,3193.0,1.88544125]
[1765447090220,3.33505074,3193.1,3193.0,1.88544125]
[1765447091018,3.33505074,3193.1,3193.0,0.43944125]
[1765447091019,3.45995074,3193.1,3193.0,0.43944125]
[1765447091713,3.45995074,3193.1,3193.0,1.83664125]
[1765447092215,3.45995074,3193.1,3193.0,1.15614125]
[1765447092408,3.45995074,3193.1,3193.0,0.43944125]
[1765447092812,3.45995074,3193.1,3193.0,1.14824125]
[1765447093017,3.45995074,3193.1,3193.0,1.82874125]
[1765447093319,3.33485074,3193.1,3193.0,1.82874125]
[1765447094221,3.21015074,3193.1,3193.0,1.82874125]
[1765447094420,3.33485074,3193.1,3193.0,1.82874125]
[1765447094914,0.00469329,3193.9,3193.0,6.43944125]
[1765447095115,0.00469329,3193.9,3193.8,4.5971]
[1765447095309,0.68439329,3193.9,3193.8,1.3893]
[1765447095714,1.40879329,3193.9,3193.8,1.3893]
[1765447095920,1.41196156,3193.9,3193.8,1.3893]
[1765447096117,1.41196156,3193.9,3193.5,0.58153]
[1765447096118,1.4041,3193.6,3193.5,1.97083]
[1765447096315,1.4041,3193.6,3193.5,1.3893]
[1765447096513,0.4345,3193.5,3193.0,0.43944125]
[1765447096710,0.6797,3193.1,3193.0,1.82874125]
[1765447097717,1.8386,3193.5,3193.4,0.7088]
[1765447098116,1.8386,3193.5,3193.0,0.43944125]
[1765447098316,0.6797,3193.1,3193.0,1.82874125]
[1765447099224,1.4041,3193.1,3193.0,1.39154125]
[1765447099525,0.6797,3193.1,3193.0,1.81654125]
[1765447100326,1.4041,3193.1,3193.0,1.81654125]
[1765447100624,0.6797,3193.1,3193.0,1.81654125]
[1765447101226,1.4041,3193.1,3193.0,1.81654125]
[1765447101428,1.4041,3193.1,3193.0,1.39154125]
[1765447102125,1.8386,3193.5,3193.4,1.3893]
[1765447103428,0.6797,3193.1,3193.0,1.81654125]
[1765447103625,1.8386,3193.5,3193.4,0.7088]
[1765447104227,1.8386,3193.5,3193.4,1.3893]
[1765447104416,3.2078,3193.6,3193.4,1.3893]
[1765447104618,3.2078,3193.6,3193.5,1.8143]
[1765447108235,1.41196156,3193.9,3193.8,1.3893]
[1765447108935,0.68756156,3193.9,3193.8,1.3893]
[1765447109135,1.40206156,3193.9,3193.8,1.3893]
[1765447111544,0.68756156,3193.9,3193.8,1.3893]
[1765447111738,1.40206156,3193.9,3193.8,1.3893]
[1765447111931,0.00786156,3193.9,3193.8,1.3893]
[1765447114034,0.00786156,3193.9,3193.8,2.53896222]
[1765447117046,0.00786156,3193.9,3193.8,2.69548222]
[1765447118144,3.9289,3194.5,3194.4,1.454]
[1765447118447,3.9289,3194.5,3194.4,2.60366222]
[1765447118650,3.9289,3194.5,3194.4,1.454]
[1765447119249,3.93137848,3194.5,3194.4,1.454]
[1765447119738,0.72357848,3194.5,3194.4,1.454]
[1765447120750,0.00247848,3194.5,3194.4,1.454]
[1765447121645,0.00247848,3194.5,3194.4,2.76015222]
[1765447123552,0.00247848,3194.5,3194.4,1.61049]
[1765447123852,0.72357848,3194.5,3194.4,1.61049]
[1765447127055,0.00247848,3194.5,3194.4,2.76015222]
[1765447127956,0.72357848,3194.5,3194.4,2.76015222]
[1765447128455,0.00247848,3194.5,3194.4,2.76015222]
[1765447129351,0.00247848,3194.5,3194.4,1.61049]
[1765447129648,0.72357848,3194.5,3194.4,1.61049]
[1765447131157,0.00247848,3194.5,3194.4,1.61049]
[1765447131354,0.4093,3195.5,3195.4,0.15644]
[1765447131551,1.1304,3195.5,3195.4,4.51390222]
[1765447131948,0.4345,3196.0,3195.4,4.51390222]
[1765447132154,0.4345,3196.0,3195.9,4.35746222]
[1765447132349,0.4366958,3196.0,3195.9,4.36067528]
[1765447132559,0.4366958,3196.0,3195.9,4.51709528]
[1765447133257,0.4366958,3196.0,3195.9,3.36743306]
[1765447134359,1.1577958,3196.0,3195.9,3.36743306]
[1765447134661,3.02195802,3196.0,3195.9,0.00321306]